[Event "Early-Titled-Tuesday-Blitz-November-28-2023"]
[Site "Chess.com"]
[Date "2023.11.28"]
[Round "1"]
[White "MasterKroket"]
[Black "ContrVersia"]
[Result "1/2-1/2"]
[WhiteElo "2503"]
[BlackElo "2881"]
[TimeControl "180+1"]
[EndTime "8:08:47 PST"]
[Termination "Game drawn by repetition"]

1. e4 {[%clk 0:03:00.3]} 1... c5 {[%clk 0:02:58.4]} 2. Nf3 {[%clk 0:03:00.5]}
2... a6 {[%clk 0:02:58.5]} 3. c4 {[%clk 0:02:59.6]} 3... Nc6 {[%clk 0:02:58.4]}
4. d4 {[%clk 0:02:59.7]} 4... cxd4 {[%clk 0:02:59.3]} 5. Nxd4 {[%clk 0:03:00]}
5... e5 {[%clk 0:03:00.2]} 6. Nxc6 {[%clk 0:02:58.7]} 6... bxc6 {[%clk
0:03:01.1]} 7. Nc3 {[%clk 0:02:58.6]} 7... Bc5 {[%clk 0:03:00.3]} 8. Be2 {[%clk
0:02:52.9]} 8... Nf6 {[%clk 0:03:00]} 9. Bg5 {[%clk 0:02:42.2]} 9... h6 {[%clk
0:02:58.6]} 10. Bh4 {[%clk 0:02:34.5]} 10... d6 {[%clk 0:02:56.8]} 11. O-O
{[%clk 0:02:33.6]} 11... g5 {[%clk 0:02:44.8]} 12. Bg3 {[%clk 0:02:33.5]} 12...
h5 {[%clk 0:02:45.2]} 13. h4 {[%clk 0:02:28.4]} 13... Ng4 {[%clk 0:02:44.8]} 14.
hxg5 {[%clk 0:02:17.4]} 14... Qxg5 {[%clk 0:02:44.6]} 15. Bxg4 {[%clk
0:02:06.8]} 15... hxg4 {[%clk 0:02:26.6]} 16. Re1 {[%clk 0:02:03.9]} 16... Qh6
{[%clk 0:02:25.2]} 17. Kf1 {[%clk 0:02:04]} 17... Qh1+ {[%clk 0:02:25.3]} 18.
Ke2 {[%clk 0:02:04.6]} 18... Qxg2 {[%clk 0:02:26]} 19. Qd3 {[%clk 0:01:41]}
19... Be6 {[%clk 0:02:21.1]} 20. Rg1 {[%clk 0:01:31]} 20... Qf3+ {[%clk
0:02:18.6]} 21. Qxf3 {[%clk 0:01:31]} 21... gxf3+ {[%clk 0:02:18.8]} 22. Kd3
{[%clk 0:01:23.3]} 22... Kd7 {[%clk 0:02:14.3]} 23. Rad1 {[%clk 0:01:13.4]}
23... f5 {[%clk 0:02:10.7]} 24. Na4 {[%clk 0:00:41.3]} 24... Bd4 {[%clk
0:02:04.2]} 25. Kc2 {[%clk 0:00:32.1]} 25... fxe4 {[%clk 0:01:52]} 26. Rxd4
{[%clk 0:00:32]} 26... exd4 {[%clk 0:01:51.9]} 27. Nb6+ {[%clk 0:00:32.6]} 27...
Kc7 {[%clk 0:01:52.1]} 28. Nxa8+ {[%clk 0:00:33.3]} 28... Rxa8 {[%clk
0:01:52.4]} 29. c5 {[%clk 0:00:34]} 29... Bf5 {[%clk 0:01:30.2]} 30. Bxd6+
{[%clk 0:00:32.3]} 30... Kd7 {[%clk 0:01:30.7]} 31. Be5 {[%clk 0:00:26.5]} 31...
e3+ {[%clk 0:01:29.7]} 32. Kc1 {[%clk 0:00:21.2]} 32... exf2 {[%clk 0:01:27.1]}
33. Rf1 {[%clk 0:00:21]} 33... d3 {[%clk 0:01:27.6]} 34. Rxf2 {[%clk 0:00:20.2]}
34... Ke6 {[%clk 0:01:28]} 35. Bc3 {[%clk 0:00:17.9]} 35... Be4 {[%clk
0:01:28.3]} 36. Rh2 {[%clk 0:00:17.3]} 36... Rg8 {[%clk 0:01:26.4]} 37. Kd2
{[%clk 0:00:17.5]} 37... Rg2+ {[%clk 0:01:05.1]} 38. Rxg2 {[%clk 0:00:17.9]}
38... fxg2 {[%clk 0:01:06]} 39. Bd4 {[%clk 0:00:18.4]} 39... Kf5 {[%clk
0:01:06.7]} 40. Bg1 {[%clk 0:00:17.2]} 40... Kf4 {[%clk 0:01:06.8]} 41. Be3+
{[%clk 0:00:16]} 41... Kf3 {[%clk 0:01:02.8]} 42. Bg1 {[%clk 0:00:16.3]} 42...
Bf5 {[%clk 0:01:02.4]} 43. b3 {[%clk 0:00:15.8]} 43... Ke4 {[%clk 0:00:55.3]}
44. Kc3 {[%clk 0:00:11.7]} 44... Be6 {[%clk 0:00:44.7]} 45. Kd2 {[%clk
0:00:11.7]} 45... a5 {[%clk 0:00:41.7]} 46. Kc3 {[%clk 0:00:12]} 46... Bf5
{[%clk 0:00:25.5]} 47. Kd2 {[%clk 0:00:12.1]} 47... Kd5 {[%clk 0:00:25.2]} 48.
Kc3 {[%clk 0:00:12.1]} 48... Ke6 {[%clk 0:00:25.4]} 49. Kd2 {[%clk 0:00:12.3]}
49... Kd7 {[%clk 0:00:25.7]} 50. Kc3 {[%clk 0:00:12.6]} 50... Kc7 {[%clk
0:00:26.1]} 51. Kd2 {[%clk 0:00:10.2]} 51... Kb7 {[%clk 0:00:26.4]} 52. Kc3
{[%clk 0:00:09.6]} 52... Ka6 {[%clk 0:00:26.7]} 53. Kd2 {[%clk 0:00:09.6]} 53...
Kb5 {[%clk 0:00:26.4]} 54. Kc3 {[%clk 0:00:10.2]} 54... Be4 {[%clk 0:00:26.5]}
55. Bf2 {[%clk 0:00:10.4]} 55... a4 {[%clk 0:00:25.7]} 56. bxa4+ {[%clk
0:00:10.2]} 56... Kxa4 {[%clk 0:00:25.7]} 57. Bg1 {[%clk 0:00:10.3]} 57... Ka3
{[%clk 0:00:26]} 58. Bf2 {[%clk 0:00:10.1]} 58... Kxa2 {[%clk 0:00:26.4]} 59.
Bg1 {[%clk 0:00:09.9]} 59... Kb1 {[%clk 0:00:26.2]} 60. Kd2 {[%clk 0:00:10.2]}
60... Kb2 {[%clk 0:00:26.9]} 61. Bf2 {[%clk 0:00:10.5]} 61... Kb3 {[%clk
0:00:26.6]} 62. Bg1 {[%clk 0:00:10.9]} 62... Kc4 {[%clk 0:00:27]} 63. Bf2 {[%clk
0:00:11.6]} 63... Kd5 {[%clk 0:00:27.4]} 64. Bg1 {[%clk 0:00:11.6]} 64... Bf5
{[%clk 0:00:26.5]} 65. Bf2 {[%clk 0:00:11.8]} 65... Ke4 {[%clk 0:00:26.8]} 66.
Bg1 {[%clk 0:00:11.4]} 66... Kf3 {[%clk 0:00:27.1]} 67. Bd4 {[%clk 0:00:11.7]}
67... Kf4 {[%clk 0:00:26.7]} 68. Bg1 {[%clk 0:00:12.2]} 68... Kg3 {[%clk
0:00:27.6]} 69. Ke3 {[%clk 0:00:12]} 69... Bg6 {[%clk 0:00:23.5]} 70. Kd2 {[%clk
0:00:12.1]} 70... Kf4 {[%clk 0:00:24.4]} 71. Bf2 {[%clk 0:00:12.2]} 71... Kf3
{[%clk 0:00:23.9]} 72. Bg1 {[%clk 0:00:12.6]} 72... Ke4 {[%clk 0:00:24.8]} 73.
Bf2 {[%clk 0:00:12.8]} 73... Kd5 {[%clk 0:00:24.9]} 74. Bg1 {[%clk 0:00:13.2]}
74... Be4 {[%clk 0:00:25.6]} 75. Bf2 {[%clk 0:00:13.6]} 75... Ke5 {[%clk
0:00:22.9]} 76. Bg1 {[%clk 0:00:13.9]} 76... Kf4 {[%clk 0:00:23.4]} 77. Bf2
{[%clk 0:00:14.3]} 77... Kg4 {[%clk 0:00:23.8]} 78. Bg1 {[%clk 0:00:14.7]} 78...
Kf3 {[%clk 0:00:23.1]} 79. Bd4 {[%clk 0:00:14.8]} 79... Bf5 {[%clk 0:00:19.4]}
80. Bg1 {[%clk 0:00:15]} 80... Kg3 {[%clk 0:00:19.6]} 81. Ke3 {[%clk 0:00:14.5]}
81... Bg6 {[%clk 0:00:14.5]} 82. Kd2 {[%clk 0:00:14.6]} 82... Kh3 {[%clk
0:00:13.9]} 83. Ke3 {[%clk 0:00:14.4]} 83... Kg3 {[%clk 0:00:14.6]} 1/2-1/2

[Event "Early-Titled-Tuesday-Blitz-November-28-2023"]
[Site "Chess.com"]
[Date "2023.11.28"]
[Round "1"]
[White "viktorgen2021"]
[Black "OhanyanEminChess"]
[Result "0-1"]
[WhiteElo "2472"]
[BlackElo "2857"]
[TimeControl "180+1"]
[EndTime "8:08:47 PST"]
[Termination "OhanyanEminChess won by resignation"]

1. Nf3 {[%clk 0:03:00.9]} 1... d5 {[%clk 0:01:39]} 2. c4 {[%clk 0:02:58.8]} 2...
e6 {[%clk 0:01:38.7]} 3. g3 {[%clk 0:02:58.1]} 3... Nf6 {[%clk 0:01:38.7]} 4.
Bg2 {[%clk 0:02:54.9]} 4... Nbd7 {[%clk 0:01:38.5]} 5. O-O {[%clk 0:02:55.3]}
5... Be7 {[%clk 0:01:38.4]} 6. b3 {[%clk 0:02:53.4]} 6... b6 {[%clk 0:01:38.3]}
7. Bb2 {[%clk 0:02:53.1]} 7... Bb7 {[%clk 0:01:39]} 8. d4 {[%clk 0:02:51.6]}
8... O-O {[%clk 0:01:36.9]} 9. Nc3 {[%clk 0:02:50.6]} 9... c5 {[%clk 0:01:35.5]}
10. cxd5 {[%clk 0:02:49.8]} 10... Nxd5 {[%clk 0:01:35.6]} 11. Rc1 {[%clk
0:02:48.3]} 11... Nxc3 {[%clk 0:01:33.3]} 12. Bxc3 {[%clk 0:02:48]} 12... Nf6
{[%clk 0:01:32.8]} 13. dxc5 {[%clk 0:02:47.7]} 13... Bxc5 {[%clk 0:01:32.9]} 14.
Qc2 {[%clk 0:02:24.3]} 14... Qe7 {[%clk 0:01:27.1]} 15. Qb2 {[%clk 0:02:22.1]}
15... Ba3 {[%clk 0:01:26.1]} 16. Bxf6 {[%clk 0:02:12]} 16... gxf6 {[%clk
0:01:27]} 17. Qd2 {[%clk 0:02:09.7]} 17... Bxc1 {[%clk 0:01:26.5]} 18. Rxc1
{[%clk 0:02:10.6]} 18... Rac8 {[%clk 0:01:25.2]} 19. Rxc8 {[%clk 0:02:02.8]}
19... Rxc8 {[%clk 0:01:26.1]} 20. Qh6 {[%clk 0:01:56.7]} 20... Qd6 {[%clk
0:01:01.8]} 21. Nd2 {[%clk 0:01:44.2]} 21... Bxg2 {[%clk 0:00:41.6]} 22. Kxg2
{[%clk 0:01:45.1]} 22... Qd5+ {[%clk 0:00:39.6]} 23. Nf3 {[%clk 0:01:36]} 23...
Rc2 {[%clk 0:00:28.7]} 24. Qxf6 {[%clk 0:01:35.4]} 24... Rxe2 {[%clk 0:00:27.6]}
25. h4 {[%clk 0:01:17.5]} 25... h5 {[%clk 0:00:22.9]} 26. Kg1 {[%clk 0:01:09.3]}
26... Rc2 {[%clk 0:00:21.4]} 27. Qf4 {[%clk 0:00:55.7]} 27... Rxa2 {[%clk
0:00:21.7]} 28. g4 {[%clk 0:00:40.1]} 28... hxg4 {[%clk 0:00:13.2]} 29. Qxg4+
{[%clk 0:00:38.4]} 29... Kf8 {[%clk 0:00:13.3]} 30. h5 {[%clk 0:00:38.6]} 30...
Ra1+ {[%clk 0:00:10.2]} 31. Kh2 {[%clk 0:00:38.3]} 31... Qf5 {[%clk 0:00:03.9]}
32. Qb4+ {[%clk 0:00:33.7]} 32... Kg8 {[%clk 0:00:04.6]} 33. Kg2 {[%clk
0:00:29.8]} 33... Qxh5 {[%clk 0:00:03.9]} 34. Qf4 {[%clk 0:00:19.1]} 34... Rd1
{[%clk 0:00:03.5]} 35. Ng5 {[%clk 0:00:17.4]} 35... Qg6 {[%clk 0:00:03.3]} 36.
Kh3 {[%clk 0:00:15.9]} 36... Rd5 {[%clk 0:00:03.5]} 37. Nf3 {[%clk 0:00:14.7]}
37... Rh5+ {[%clk 0:00:03.4]} 38. Nh4 {[%clk 0:00:15.2]} 38... Qh6 {[%clk
0:00:03.5]} 39. Qg4+ {[%clk 0:00:14.6]} 39... Kh7 {[%clk 0:00:03.2]} 40. Qe4+
{[%clk 0:00:11.8]} 40... Kg7 {[%clk 0:00:02.1]} 41. Qg4+ {[%clk 0:00:11.3]}
41... Kh8 {[%clk 0:00:02]} 42. Qd4+ {[%clk 0:00:10.7]} 42... Kh7 {[%clk
0:00:01.7]} 43. Qe4+ {[%clk 0:00:10.7]} 43... Qg6 {[%clk 0:00:02.5]} 44. Qf4
{[%clk 0:00:05]} 44... Qg5 {[%clk 0:00:02.8]} 45. Qxf7+ {[%clk 0:00:03.8]} 45...
Kh8 {[%clk 0:00:03]} 46. Qf8+ {[%clk 0:00:04.2]} 46... Qg8 {[%clk 0:00:03.2]}
47. Qf6+ {[%clk 0:00:04.3]} 47... Qg7 {[%clk 0:00:03.9]} 48. Qd8+ {[%clk
0:00:04.5]} 48... Kh7 {[%clk 0:00:04.1]} 49. Qd3+ {[%clk 0:00:05.2]} 49... Kg8
{[%clk 0:00:02.3]} 50. Qd8+ {[%clk 0:00:05.2]} 50... Qf8 {[%clk 0:00:02.8]} 51.
Qd2 {[%clk 0:00:03.7]} 51... Qf5+ {[%clk 0:00:03.3]} 52. Kg3 {[%clk 0:00:03.8]}
52... Qg5+ {[%clk 0:00:03.6]} 53. Qxg5+ {[%clk 0:00:03.7]} 53... Rxg5+ {[%clk
0:00:04.5]} 54. Kf4 {[%clk 0:00:03.7]} 54... Rh5 {[%clk 0:00:05.1]} 55. Nf3
{[%clk 0:00:03.8]} 55... Rf5+ {[%clk 0:00:05.5]} 56. Ke4 {[%clk 0:00:04.1]}
56... Kf8 {[%clk 0:00:05.8]} 57. Nd4 {[%clk 0:00:04.5]} 57... Rxf2 {[%clk
0:00:04.5]} 58. Nxe6+ {[%clk 0:00:04.7]} 58... Ke7 {[%clk 0:00:04.7]} 59. Nd4
{[%clk 0:00:04.7]} 59... Kd7 {[%clk 0:00:03.3]} 60. Kd5 {[%clk 0:00:04.9]} 60...
Rd2 {[%clk 0:00:03.3]} 61. Kc4 {[%clk 0:00:05.4]} 61... Rh2 {[%clk 0:00:04.2]}
62. Nb5 {[%clk 0:00:05.1]} 62... a6 {[%clk 0:00:04]} 63. Nd4 {[%clk 0:00:05.6]}
63... Rh4 {[%clk 0:00:04.2]} 64. Kd5 {[%clk 0:00:05.8]} 64... Rh5+ {[%clk
0:00:04.6]} 65. Kc4 {[%clk 0:00:06.3]} 65... a5 {[%clk 0:00:04.8]} 66. Nc2
{[%clk 0:00:04.5]} 66... Rc5+ {[%clk 0:00:04]} 67. Kd3 {[%clk 0:00:04.4]} 67...
Kc6 {[%clk 0:00:04.8]} 68. Nd4+ {[%clk 0:00:04.9]} 68... Kb7 {[%clk 0:00:04.8]}
69. Ne6 {[%clk 0:00:05]} 69... Rd5+ {[%clk 0:00:04.7]} 70. Kc4 {[%clk
0:00:05.4]} 70... Rh5 {[%clk 0:00:04.9]} 71. Nd4 {[%clk 0:00:05.5]} 71... Ka6
{[%clk 0:00:04.9]} 72. Nc6 {[%clk 0:00:04.8]} 72... Rc5+ {[%clk 0:00:04.1]} 73.
Kd4 {[%clk 0:00:05.2]} 73... Rxc6 {[%clk 0:00:04.9]} 0-1

[Event "Early-Titled-Tuesday-Blitz-November-28-2023"]
[Site "Chess.com"]
[Date "2023.11.28"]
[Round "1"]
[White "KaydenTroffChess"]
[Black "Kotofeyca"]
[Result "1/2-1/2"]
[WhiteElo "2788"]
[BlackElo "2454"]
[TimeControl "180+1"]
[EndTime "8:08:50 PST"]
[Termination "Game drawn - insufficient material"]

1. d4 {[%clk 0:03:00.9]} 1... d5 {[%clk 0:02:59.7]} 2. Nf3 {[%clk 0:03:00.6]}
2... c6 {[%clk 0:03:00.2]} 3. Bf4 {[%clk 0:03:00.2]} 3... Bg4 {[%clk 0:02:59.5]}
4. Ne5 {[%clk 0:02:59.8]} 4... Bh5 {[%clk 0:02:59]} 5. c4 {[%clk 0:02:58.6]}
5... e6 {[%clk 0:02:58.7]} 6. Nc3 {[%clk 0:02:57.1]} 6... Nd7 {[%clk 0:02:58]}
7. Qb3 {[%clk 0:02:57]} 7... Nxe5 {[%clk 0:02:56.7]} 8. Bxe5 {[%clk 0:02:55.2]}
8... Qd7 {[%clk 0:02:54.2]} 9. e3 {[%clk 0:02:11.1]} 9... f6 {[%clk 0:02:50.7]}
10. Bg3 {[%clk 0:02:09]} 10... f5 {[%clk 0:02:50.7]} 11. Bd3 {[%clk 0:01:50.5]}
11... Nf6 {[%clk 0:02:50.6]} 12. O-O {[%clk 0:01:49.5]} 12... Be7 {[%clk
0:02:49.3]} 13. Qc2 {[%clk 0:01:40.2]} 13... O-O {[%clk 0:02:47]} 14. cxd5
{[%clk 0:01:40.2]} 14... cxd5 {[%clk 0:02:38.2]} 15. Bb5 {[%clk 0:01:35.7]}
15... Qd8 {[%clk 0:02:27.9]} 16. Rac1 {[%clk 0:01:34.1]} 16... a6 {[%clk
0:02:23.9]} 17. Be2 {[%clk 0:01:30.3]} 17... Qa5 {[%clk 0:02:16.1]} 18. Qb3
{[%clk 0:01:19.9]} 18... Qb4 {[%clk 0:02:04.9]} 19. Bxh5 {[%clk 0:01:06.2]}
19... Qxb3 {[%clk 0:01:55.5]} 20. axb3 {[%clk 0:01:05.4]} 20... Nxh5 {[%clk
0:01:55.9]} 21. Be5 {[%clk 0:01:01]} 21... Rac8 {[%clk 0:01:22.2]} 22. Na4
{[%clk 0:00:59.3]} 22... Nf6 {[%clk 0:01:15.3]} 23. Nb6 {[%clk 0:00:57.5]} 23...
Rxc1 {[%clk 0:01:15.1]} 24. Rxc1 {[%clk 0:00:56.7]} 24... Bd8 {[%clk 0:01:14.4]}
25. Bc7 {[%clk 0:00:55.8]} 25... Be7 {[%clk 0:01:05.6]} 26. Be5 {[%clk
0:00:47.1]} 26... Bd8 {[%clk 0:01:05.4]} 27. Bxf6 {[%clk 0:00:41.8]} 27... Bxb6
{[%clk 0:01:01.5]} 28. Be5 {[%clk 0:00:41]} 28... Kf7 {[%clk 0:00:58.9]} 29. Rc3
{[%clk 0:00:34.4]} 29... Ba5 {[%clk 0:00:48.5]} 30. b4 {[%clk 0:00:32.8]} 30...
Bb6 {[%clk 0:00:37.3]} 31. Bc7 {[%clk 0:00:31.1]} 31... Bxc7 {[%clk 0:00:19.9]}
32. Rxc7+ {[%clk 0:00:32]} 32... Kf6 {[%clk 0:00:20.5]} 33. Rxb7 {[%clk
0:00:32.2]} 33... Rc8 {[%clk 0:00:21.1]} 34. g3 {[%clk 0:00:24.6]} 34... Rc2
{[%clk 0:00:21.6]} 35. b5 {[%clk 0:00:24.2]} 35... a5 {[%clk 0:00:18.4]} 36. Ra7
{[%clk 0:00:22.3]} 36... Rxb2 {[%clk 0:00:17.6]} 37. Rxa5 {[%clk 0:00:22.4]}
37... h5 {[%clk 0:00:17.5]} 38. h4 {[%clk 0:00:21.3]} 38... g6 {[%clk 0:00:17]}
39. Kg2 {[%clk 0:00:21.5]} 39... Rb1 {[%clk 0:00:16.3]} 40. Kf3 {[%clk
0:00:21.1]} 40... Rb2 {[%clk 0:00:16.9]} 41. Kg2 {[%clk 0:00:20.9]} 41... Rb1
{[%clk 0:00:17.1]} 42. Kh2 {[%clk 0:00:20.3]} 42... Rb2 {[%clk 0:00:17.5]} 43.
Kg1 {[%clk 0:00:20.9]} 43... Rb1+ {[%clk 0:00:17.9]} 44. Kg2 {[%clk 0:00:21.5]}
44... Rb2 {[%clk 0:00:18.8]} 45. Kf3 {[%clk 0:00:14.7]} 45... Rb1 {[%clk
0:00:18.1]} 46. Kf4 {[%clk 0:00:10.8]} 46... Rb2 {[%clk 0:00:18.4]} 47. f3
{[%clk 0:00:10.3]} 47... Rb3 {[%clk 0:00:15.3]} 48. Ra8 {[%clk 0:00:10.2]} 48...
Rxb5 {[%clk 0:00:14.6]} 49. Rf8+ {[%clk 0:00:10.2]} 49... Ke7 {[%clk 0:00:14.4]}
50. Rh8 {[%clk 0:00:09.9]} 50... Kf6 {[%clk 0:00:13.6]} 51. g4 {[%clk
0:00:10.4]} 51... fxg4 {[%clk 0:00:12.9]} 52. fxg4 {[%clk 0:00:11.1]} 52... hxg4
{[%clk 0:00:13.2]} 53. Kxg4 {[%clk 0:00:11.1]} 53... Rb1 {[%clk 0:00:13.3]} 54.
Rf8+ {[%clk 0:00:11.3]} 54... Ke7 {[%clk 0:00:13.4]} 55. Rf3 {[%clk 0:00:11.5]}
55... Rg1+ {[%clk 0:00:12.3]} 56. Rg3 {[%clk 0:00:09.7]} 56... Rxg3+ {[%clk
0:00:11.9]} 57. Kxg3 {[%clk 0:00:10.6]} 57... Kf7 {[%clk 0:00:12.2]} 58. Kg4
{[%clk 0:00:10.9]} 58... Kf6 {[%clk 0:00:12.2]} 59. Kf4 {[%clk 0:00:11.4]} 59...
Kf7 {[%clk 0:00:12.6]} 60. Kg5 {[%clk 0:00:08.9]} 60... Kg7 {[%clk 0:00:12.9]}
61. Kg4 {[%clk 0:00:07.4]} 61... Kf7 {[%clk 0:00:11.9]} 62. Kf3 {[%clk
0:00:06.4]} 62... Ke7 {[%clk 0:00:10]} 63. Kg3 {[%clk 0:00:06.1]} 63... Kf7
{[%clk 0:00:10]} 64. Kg4 {[%clk 0:00:06.7]} 64... Kf6 {[%clk 0:00:09.5]} 65. Kf4
{[%clk 0:00:07]} 65... Kf7 {[%clk 0:00:09.6]} 66. Kg5 {[%clk 0:00:06.6]} 66...
Kg7 {[%clk 0:00:09.9]} 67. Kg4 {[%clk 0:00:05.4]} 67... Kf7 {[%clk 0:00:09.4]}
68. h5 {[%clk 0:00:05.9]} 68... gxh5+ {[%clk 0:00:09.1]} 69. Kxh5 {[%clk
0:00:06.8]} 69... Kf6 {[%clk 0:00:09.7]} 70. Kg4 {[%clk 0:00:06.6]} 70... Kg6
{[%clk 0:00:10]} 71. Kf4 {[%clk 0:00:06.4]} 71... Kf6 {[%clk 0:00:10.7]} 72. Kg3
{[%clk 0:00:04.6]} 72... Kf5 {[%clk 0:00:10.7]} 73. Kf3 {[%clk 0:00:04.9]} 73...
Kg5 {[%clk 0:00:11.4]} 74. e4 {[%clk 0:00:05.1]} 74... dxe4+ {[%clk 0:00:11]}
75. Kxe4 {[%clk 0:00:06]} 75... Kf6 {[%clk 0:00:11.6]} 76. Kf4 {[%clk
0:00:06.4]} 76... Kg6 {[%clk 0:00:11.3]} 77. Ke5 {[%clk 0:00:07.3]} 77... Kf7
{[%clk 0:00:11.7]} 78. Kd6 {[%clk 0:00:07.4]} 78... Kf6 {[%clk 0:00:12.1]} 79.
d5 {[%clk 0:00:07.7]} 79... exd5 {[%clk 0:00:11.7]} 80. Kxd5 {[%clk 0:00:08.6]}
1/2-1/2

[Event "Early-Titled-Tuesday-Blitz-November-28-2023"]
[Site "Chess.com"]
[Date "2023.11.28"]
[Round "1"]
[White "olksuna"]
[Black "AccioChess"]
[Result "1/2-1/2"]
[WhiteElo "2749"]
[BlackElo "2441"]
[TimeControl "180+1"]
[EndTime "8:09:00 PST"]
[Termination "Game drawn - insufficient material"]

1. e4 {[%clk 0:03:00.9]} 1... c5 {[%clk 0:00:31.4]} 2. Nf3 {[%clk 0:02:59.5]}
2... d6 {[%clk 0:00:30.4]} 3. d4 {[%clk 0:02:59.1]} 3... cxd4 {[%clk 0:00:30.6]}
4. Nxd4 {[%clk 0:02:59.8]} 4... Nf6 {[%clk 0:00:30.8]} 5. Nc3 {[%clk 0:02:59.9]}
5... a6 {[%clk 0:00:29.3]} 6. Rg1 {[%clk 0:02:59.7]} 6... Nc6 {[%clk 0:00:23.6]}
7. Nxc6 {[%clk 0:02:43.4]} 7... bxc6 {[%clk 0:00:24.5]} 8. g4 {[%clk 0:02:44.2]}
8... Qa5 {[%clk 0:00:23]} 9. Bd3 {[%clk 0:02:39.6]} 9... Rb8 {[%clk 0:00:17.5]}
10. g5 {[%clk 0:02:38.3]} 10... Nd7 {[%clk 0:00:17]} 11. Rb1 {[%clk 0:02:32]}
11... Nc5 {[%clk 0:00:15.5]} 12. Bd2 {[%clk 0:02:29.1]} 12... Nxd3+ {[%clk
0:00:15.1]} 13. cxd3 {[%clk 0:02:30]} 13... Qc7 {[%clk 0:00:14.7]} 14. b3 {[%clk
0:02:26.2]} 14... e5 {[%clk 0:00:14.5]} 15. Rc1 {[%clk 0:02:26.2]} 15... Qd7
{[%clk 0:00:14.6]} 16. Rg3 {[%clk 0:02:18.4]} 16... Be7 {[%clk 0:00:14.8]} 17.
h4 {[%clk 0:02:15.3]} 17... f5 {[%clk 0:00:14.7]} 18. gxf6 {[%clk 0:02:13.2]}
18... Bxf6 {[%clk 0:00:14.8]} 19. Bg5 {[%clk 0:02:03.2]} 19... O-O {[%clk
0:00:13]} 20. Qh5 {[%clk 0:01:58.9]} 20... Qf7 {[%clk 0:00:12.4]} 21. Qxf7+
{[%clk 0:01:45.3]} 21... Rxf7 {[%clk 0:00:13.3]} 22. Na4 {[%clk 0:01:45.7]}
22... Bd7 {[%clk 0:00:12.8]} 23. Nb2 {[%clk 0:01:45.8]} 23... Rbf8 {[%clk
0:00:11.8]} 24. Rc2 {[%clk 0:01:43.6]} 24... Bxg5 {[%clk 0:00:11.6]} 25. hxg5
{[%clk 0:01:42.6]} 25... d5 {[%clk 0:00:11.9]} 26. Na4 {[%clk 0:01:38.6]} 26...
dxe4 {[%clk 0:00:11.8]} 27. dxe4 {[%clk 0:01:38.8]} 27... Rf4 {[%clk 0:00:12.2]}
28. Nc5 {[%clk 0:01:38.7]} 28... Be8 {[%clk 0:00:11.8]} 29. Kf1 {[%clk
0:01:28.1]} 29... Rh4 {[%clk 0:00:11.4]} 30. Kg2 {[%clk 0:01:25]} 30... Bg6
{[%clk 0:00:11.4]} 31. f3 {[%clk 0:01:20.2]} 31... Rd8 {[%clk 0:00:11.1]} 32.
Nxa6 {[%clk 0:01:16.7]} 32... Ra8 {[%clk 0:00:09.1]} 33. Rxc6 {[%clk 0:01:11.5]}
33... Rxe4 {[%clk 0:00:08.5]} 34. Kf2 {[%clk 0:00:53.9]} 34... Rd4 {[%clk
0:00:06.6]} 35. Rg2 {[%clk 0:00:45]} 35... Rd2+ {[%clk 0:00:04]} 36. Kg3 {[%clk
0:00:44.9]} 36... Rd3 {[%clk 0:00:04.2]} 37. Nc5 {[%clk 0:00:36.6]} 37... Rc3
{[%clk 0:00:03.3]} 38. b4 {[%clk 0:00:22.1]} 38... e4 {[%clk 0:00:03.8]} 39. Rf2
{[%clk 0:00:22.6]} 39... Raa3 {[%clk 0:00:03.9]} 40. Nb3 {[%clk 0:00:16.7]}
40... Rxc6 {[%clk 0:00:03]} 41. fxe4 {[%clk 0:00:15.2]} 41... Rca6 {[%clk
0:00:03.3]} 42. Rd2 {[%clk 0:00:13.7]} 42... Rxa2 {[%clk 0:00:03.6]} 43. Rd8+
{[%clk 0:00:14.3]} 43... Kf7 {[%clk 0:00:03.2]} 44. Nc5 {[%clk 0:00:15.2]} 44...
Ra8 {[%clk 0:00:03]} 45. Rd7+ {[%clk 0:00:14.8]} 45... Ke8 {[%clk 0:00:03.2]}
46. Rxg7 {[%clk 0:00:14.4]} 46... R2a3+ {[%clk 0:00:04.1]} 47. Kf4 {[%clk
0:00:14.2]} 47... Kf8 {[%clk 0:00:05]} 48. Ne6+ {[%clk 0:00:13.2]} 48... Ke8
{[%clk 0:00:05.3]} 49. Nc7+ {[%clk 0:00:13.3]} 49... Kd8 {[%clk 0:00:06.2]} 50.
Nxa8 {[%clk 0:00:13.3]} 50... Rxa8 {[%clk 0:00:05.7]} 51. Rg8+ {[%clk
0:00:13.5]} 51... Be8 {[%clk 0:00:06.1]} 52. Rg7 {[%clk 0:00:13.6]} 52... Ra4
{[%clk 0:00:06.3]} 53. Rxh7 {[%clk 0:00:12.2]} 53... Rxb4 {[%clk 0:00:06.8]} 54.
Kf5 {[%clk 0:00:07.7]} 54... Bd7+ {[%clk 0:00:07.1]} 55. Ke5 {[%clk 0:00:06.3]}
55... Bc6 {[%clk 0:00:07.4]} 56. Kd6 {[%clk 0:00:05.4]} 56... Be8 {[%clk
0:00:07.7]} 57. e5 {[%clk 0:00:04]} 57... Rb6+ {[%clk 0:00:07.1]} 58. Kc5 {[%clk
0:00:04.3]} 58... Rg6 {[%clk 0:00:07.6]} 59. Ra7 {[%clk 0:00:01.6]} 59... Bd7
{[%clk 0:00:07.8]} 60. Kd5 {[%clk 0:00:01.2]} 60... Ke7 {[%clk 0:00:08.2]} 61.
Rb7 {[%clk 0:00:01.3]} 61... Rxg5 {[%clk 0:00:08.2]} 62. Kd4 {[%clk 0:00:01.2]}
62... Rg4+ {[%clk 0:00:08.4]} 63. Kd5 {[%clk 0:00:01.7]} 63... Rg1 {[%clk
0:00:09]} 64. Kc5 {[%clk 0:00:02.6]} 64... Rd1 {[%clk 0:00:09.2]} 65. Rb4 {[%clk
0:00:03.5]} 65... Ke6 {[%clk 0:00:09.2]} 66. Rd4 {[%clk 0:00:04.4]} 66... Rxd4
{[%clk 0:00:08.5]} 67. Kxd4 {[%clk 0:00:05.3]} 67... Bc6 {[%clk 0:00:08.4]} 68.
Kc5 {[%clk 0:00:05.6]} 68... Bd5 {[%clk 0:00:09.3]} 69. Kd4 {[%clk 0:00:05.8]}
69... Kf5 {[%clk 0:00:08.7]} 70. Kc5 {[%clk 0:00:06.7]} 70... Kxe5 {[%clk
0:00:08.5]} 1/2-1/2